fUSD/lending_fUSD_20240319
["ID","MTS","AMOUNT","RATE_DAILY","PERIOD"]
[319616372,1710889900880,-515.48,0.00035342,5]
[319616373,1710889900889,-853.27,0.00035342,5]
[319616374,1710889900899,-1115.49,0.00035342,5]
[319616375,1710889900909,-971.85,0.00035342,5]
[319616376,1710889900919,-543.38,0.00035342,5]
[319616377,1710889900928,-2831.03,0.00035342,5]
[319616378,1710889900938,-1184.24,0.00035342,5]
[319616379,1710889900948,-979.33,0.00035342,5]
[319616380,1710889900959,-1727.5,0.00035342,5]
[319616381,1710889900969,-500.0,0.00035342,5]
[319616382,1710889900982,-766.46,0.00035342,5]
[319616383,1710889900992,-690.56,0.00035342,5]
[319616384,1710889901001,-522.77,0.00035342,5]
[319616385,1710889901011,-817.88,0.00035342,5]
[319616386,1710889901021,-589.9823267,0.00035342,5]
[319616387,1710889901030,-556.39,0.00035342,5]
[319616388,1710889901040,-4845.95,0.00035342,5]
[319616389,1710889901050,-4803.55,0.00035342,5]
[319616390,1710889901060,-500.0,0.00035342,5]
[319616391,1710889901069,-500.0,0.00035342,5]
[319616392,1710889901079,-34103.85,0.00035342,5]
[319616393,1710889901089,-1942.23,0.00035342,5]
[319616394,1710889901098,-1080.43,0.00035342,5]
[319616395,1710889901108,-3482.12,0.00035342,5]
[319616396,1710889901117,-1812.24,0.00035342,5]
[319616397,1710889901128,-500.0,0.00035342,5]
[319616398,1710889901137,-670.6,0.00035342,5]
[319616399,1710889901147,-600.36,0.00035342,5]
[319616400,1710889901156,-862.6,0.00035342,5]
[319616401,1710889901166,-4330.62,0.00035342,5]
[319616402,1710889901175,-876.81,0.00035342,5]
[319616403,1710889901186,-3516.45,0.00035342,5]
[319616404,1710889901196,-628.68,0.00035342,5]
[319616405,1710889901207,-728.13,0.00035342,5]
[319616406,1710889901217,-898.81,0.00035342,5]
[319616407,1710889901229,-12216.87,0.00035342,5]
[319616408,1710889901238,-518.77,0.00035342,5]
[319616409,1710889901248,-500.0,0.00035342,5]
[319616410,1710889901257,-2145.43,0.00035342,5]
[319616411,1710889901267,-535.35,0.00035342,5]
[319616412,1710889901277,-2312.93,0.00035342,5]
[319616413,1710889901287,-555.13,0.00035342,5]
[319616414,1710889901297,-901.75,0.00035342,5]
[319616415,1710889901307,-2237.89,0.00035342,5]
[319616416,1710889901316,-1754.94,0.00035342,5]
[319616417,1710889901325,-2222.53,0.00035342,5]
[319616418,1710889901334,-693.88,0.00035342,5]
[319616419,1710889901344,-207.0,0.0003539,2]
[319616420,1710889901354,-3208.06256737,0.00035613,2]
[319616421,1710889901363,-808.57,0.00035616,5]
[319616422,1710889901372,-739.62,0.00035616,5]
[319616423,1710889901382,-770.01,0.00035616,5]
[319616424,1710889901391,-706.97,0.00035616,5]
[319616425,1710889901401,-1912.51,0.00035616,5]
[319616426,1710889901411,-1956.9,0.00035616,5]
[319616427,1710889901421,-625.35,0.00035616,5]
[319616428,1710889901431,-2737.91,0.00035616,5]
[319616429,1710889901440,-727.13,0.00035616,5]
[319616430,1710889901450,-969.84,0.00035616,5]
[319616431,1710889901460,-1547.97,0.00035616,5]
[319616432,1710889901470,-771.88,0.00035616,5]
[319616433,1710889901482,-1734.35,0.00035616,5]
[319616434,1710889901491,-1362.64,0.00035616,5]
[319616435,1710889901501,-799.5,0.00035616,5]
[319616436,1710889901511,-506.51,0.00035616,5]
[319616437,1710889901521,-962.3,0.00035616,5]
[319616438,1710889901531,-738.08,0.00035616,5]
[319616439,1710889901541,-610.15763006,0.00035616,5]
[319616440,1710889901550,-3065.96,0.00035616,5]
[319616441,1710889901560,-461.95403028,0.00035616,5]
[319616442,1710889901569,-527.83,0.00035616,5]
[319616443,1710889901579,-1402.94,0.00035616,5]
[319616444,1710889901589,-863.28,0.00035616,5]
[319616445,1710889901598,-509.57,0.00035616,5]
[319616446,1710889901608,-816.49,0.00035616,5]
[319616447,1710889901617,-546.0,0.00035616,5]
[319616448,1710889901628,-511.63889107,0.00035616,5]
[319616449,1710889901638,-1467.71,0.00035616,5]
[319616450,1710889901648,-10090.18,0.00035616,5]
[319616451,1710889901657,-2448.69,0.00035616,5]
[319616452,1710889901667,-1832.0,0.00035616,5]
[319616453,1710889901676,-1702.82,0.00035616,5]
[319616454,1710889901686,-576.68,0.00035616,5]
[319616455,1710889901696,-550.72,0.00035616,5]
[319616456,1710889901705,-1410.4,0.00035616,5]
[319616457,1710889901714,-1698.2,0.00035616,5]
[319616458,1710889901724,-566.59,0.00035616,5]
[319616459,1710889901734,-618.74,0.00035616,5]
[319616460,1710889901743,-4353.24,0.00035616,5]
[319616461,1710889901753,-7073.81,0.00035616,5]
[319616462,1710889901763,-522.69,0.00035616,5]
[319616463,1710889901773,-928.93,0.00035616,5]
[319616464,1710889901783,-811.39,0.00035616,5]
[319616465,1710889901794,-1038.54,0.00035616,5]
[319616466,1710889901804,-4631.2,0.00035616,5]
[319616467,1710889901814,-1456.54,0.00035616,5]
[319616468,1710889901824,-871.05,0.00035616,5]
[319616469,1710889901834,-1056.59,0.00035616,5]
[319616470,1710889901844,-537.22,0.00035616,5]
[319616471,1710889901854,-361.39759024,0.00035616,5]
[319616472,1710889901868,-524.13,0.00035616,5]
[319616473,1710889901879,-2348.88,0.00035616,5]
[319616474,1710889901889,-515.48,0.00035616,5]
[319616475,1710889901898,-853.27,0.00035616,5]
[319616476,1710889901908,-1115.49,0.00035616,5]
[319616477,1710889901918,-971.85,0.00035616,5]
[319616478,1710889901929,-543.38,0.00035616,5]
[319616479,1710889901938,-2831.03,0.00035616,5]
[319616480,1710889901948,-1184.24,0.00035616,5]
[319616481,1710889901959,-979.33,0.00035616,5]
[319616482,1710889901969,-1727.5,0.00035616,5]
[319616483,1710889901981,-500.0,0.00035616,5]
[319616484,1710889901993,-766.46,0.00035616,5]
[319616485,1710889902003,-690.56,0.00035616,5]
[319616486,1710889902013,-522.77,0.00035616,5]
[319616487,1710889902024,-817.88,0.00035616,5]
[319616488,1710889902034,-556.39,0.00035616,5]
[319616489,1710889902046,-4845.95,0.00035616,5]
[319616490,1710889902056,-4803.55,0.00035616,5]
[319616491,1710889902066,-632.62537911,0.00035616,5]
[319616492,1710889902075,-500.0,0.00035616,5]
[319616493,1710889902086,-34103.85,0.00035616,5]
[319616494,1710889902096,-1942.23,0.00035616,5]
[319616495,1710889902105,-1080.43,0.00035616,5]
[319616496,1710889902115,-3482.12,0.00035616,5]
[319616497,1710889902126,-1812.24,0.00035616,5]
[319616498,1710889902135,-500.0,0.00035616,5]
[319616499,1710889902146,-670.6,0.00035616,5]
[319616500,1710889902156,-600.36,0.00035616,5]
[319616501,1710889902166,-862.6,0.00035616,5]
[319616502,1710889902176,-4330.62,0.00035616,5]
[319616503,1710889902186,-876.81,0.00035616,5]
[319616504,1710889902196,-3516.45,0.00035616,5]
[319616505,1710889902206,-628.68,0.00035616,5]
[319616506,1710889902217,-728.13,0.00035616,5]
[319616507,1710889902228,-898.81,0.00035616,5]
[319616508,1710889902237,-12216.87,0.00035616,5]
[319616509,1710889902247,-518.77,0.00035616,5]
[319616510,1710889902256,-500.0,0.00035616,5]
[319616511,1710889902265,-2145.43,0.00035616,5]
[319616512,1710889902275,-535.35,0.00035616,5]
[319616513,1710889902285,-2312.93,0.00035616,5]
[319616514,1710889902296,-555.13,0.00035616,5]
[319616515,1710889902306,-901.75,0.00035616,5]
[319616516,1710889902316,-2237.89,0.00035616,5]
[319616517,1710889902326,-1754.94,0.00035616,5]
[319616518,1710889902336,-2222.53,0.00035616,5]
[319616519,1710889902347,-693.88,0.00035616,5]
[319616520,1710889902358,-500.0,0.00035616,8]
[319616521,1710889902369,-269.0,0.0003572,2]
[319616522,1710889902380,-604.0,0.00035786,7]
[319616523,1710889902391,-200.0,0.00035874,10]
[319616524,1710889902409,-800.0,0.00035874,10]
[319616525,1710889902421,-200.0,0.00035874,10]
[319616526,1710889902434,-200.0,0.00035874,10]
[319616527,1710889902446,-808.57,0.0003589,5]
[319616528,1710889902458,-739.62,0.0003589,5]
[319616529,1710889902470,-770.01,0.0003589,5]
[319616530,1710889902486,-706.97,0.0003589,5]
[319616531,1710889902499,-1912.51,0.0003589,5]
[319616532,1710889902514,-1956.9,0.0003589,5]
[319616533,1710889902527,-625.35,0.0003589,5]
[319616534,1710889902539,-2737.91,0.0003589,5]
[319616535,1710889902551,-727.13,0.0003589,5]
[319616536,1710889902563,-969.84,0.0003589,5]
[319616537,1710889902576,-1547.97,0.0003589,5]
[319616538,1710889902589,-771.88,0.0003589,5]
[319616539,1710889902602,-1734.35,0.0003589,5]
[319616540,1710889902615,-1362.64,0.0003589,5]
[319616541,1710889902628,-799.5,0.0003589,5]
[319616542,1710889902640,-506.51,0.0003589,5]
[319616543,1710889902652,-962.3,0.0003589,5]
[319616544,1710889902665,-738.08,0.0003589,5]
[319616545,1710889902678,-3065.96,0.0003589,5]
[319616546,1710889902691,-527.83,0.0003589,5]
[319616547,1710889902704,-1402.94,0.0003589,5]
[319616548,1710889902719,-863.28,0.0003589,5]
[319616549,1710889902740,-509.57,0.0003589,5]
[319616550,1710889902753,-816.49,0.0003589,5]
[319616551,1710889902766,-546.0,0.0003589,5]
[319616552,1710889902778,-1467.71,0.0003589,5]
[319616553,1710889902790,-10090.18,0.0003589,5]
[319616554,1710889902803,-2448.69,0.0003589,5]
[319616555,1710889902815,-1832.0,0.0003589,5]
[319616556,1710889902827,-1702.82,0.0003589,5]
[319616557,1710889902844,-576.68,0.0003589,5]
[319616558,1710889902857,-550.72,0.0003589,5]
[319616559,1710889902870,-1410.4,0.0003589,5]
[319616560,1710889902883,-1698.2,0.0003589,5]
[319616561,1710889902896,-566.59,0.0003589,5]
[319616562,1710889902908,-618.74,0.0003589,5]
[319616563,1710889902924,-4353.24,0.0003589,5]
[319616564,1710889902936,-7073.81,0.0003589,5]
[319616565,1710889902948,-522.69,0.0003589,5]
[319616566,1710889902961,-811.39,0.0003589,5]
[319616567,1710889902973,-928.93,0.0003589,5]
[319616568,1710889902991,-1038.54,0.0003589,5]
[319616569,1710889903003,-4631.2,0.0003589,5]
[319616570,1710889903014,-1456.54,0.0003589,5]
[319616571,1710889903028,-871.05,0.0003589,5]
[319616572,1710889903039,-1056.59,0.0003589,5]
[319616573,1710889903236,-537.22,0.0003589,5]
[319616574,1710889903247,-524.13,0.0003589,5]
[319616575,1710889903257,-2348.88,0.0003589,5]
[319616576,1710889903267,-515.48,0.0003589,5]
[319616577,1710889903277,-853.27,0.0003589,5]
[319616578,1710889903287,-1115.49,0.0003589,5]
[319616579,1710889903297,-971.85,0.0003589,5]
[319616580,1710889903306,-543.38,0.0003589,5]
[319616581,1710889903315,-2831.03,0.0003589,5]
[319616582,1710889903325,-1184.24,0.0003589,5]
[319616583,1710889903334,-979.33,0.0003589,5]
[319616584,1710889903344,-1727.5,0.0003589,5]
[319616585,1710889903353,-500.0,0.0003589,5]
[319616586,1710889903364,-766.46,0.0003589,5]
[319616587,1710889903374,-690.56,0.0003589,5]
[319616588,1710889903384,-522.77,0.0003589,5]
[319616589,1710889903394,-817.88,0.0003589,5]
[319616590,1710889903403,-556.39,0.0003589,5]
[319616591,1710889903413,-4845.95,0.0003589,5]
[319616592,1710889903423,-4803.55,0.0003589,5]
[319616593,1710889903432,-515.2641381,0.0003589,5]
[319616594,1710889903443,-34103.85,0.0003589,5]
[319616595,1710889903453,-1942.23,0.0003589,5]
[319616596,1710889903463,-1080.43,0.0003589,5]
[319616597,1710889903473,-3482.12,0.0003589,5]
[319616598,1710889903488,-1812.24,0.0003589,5]
[319616599,1710889903497,-500.0,0.0003589,5]
[319616600,1710889903507,-670.6,0.0003589,5]
[319616601,1710889903517,-600.36,0.0003589,5]
[319616602,1710889903527,-862.6,0.0003589,5]
[319616603,1710889903538,-4330.62,0.0003589,5]
[319616604,1710889903548,-876.81,0.0003589,5]
[319616605,1710889903558,-3516.45,0.0003589,5]
[319616606,1710889903569,-628.68,0.0003589,5]
[319616607,1710889903580,-728.13,0.0003589,5]
[319616608,1710889903590,-898.81,0.0003589,5]
[319616609,1710889903601,-12216.87,0.0003589,5]
[319616610,1710889903611,-518.77,0.0003589,5]
[319616611,1710889903622,-500.0,0.0003589,5]
[319616612,1710889903633,-2145.43,0.0003589,5]
[319616613,1710889903644,-535.35,0.0003589,5]
[319616614,1710889903654,-2312.93,0.0003589,5]
[319616615,1710889903665,-555.13,0.0003589,5]
[319616616,1710889903676,-901.75,0.0003589,5]
[319616617,1710889903687,-2237.89,0.0003589,5]
[319616618,1710889903698,-1754.94,0.0003589,5]
[319616619,1710889903708,-2222.53,0.0003589,5]
[319616620,1710889903718,-693.88,0.0003589,5]
[319616621,1710889903734,-1515.359462,0.0003596,14]
[319616622,1710889903745,-1000.0,0.0003598,14]
[319616623,1710889903755,-1000.0,0.00036,14]
[319616624,1710889903766,-1000.0,0.0003602,14]
[319616625,1710889903777,-1000.0,0.0003604,14]
[319616626,1710889903788,-1155.415819,0.0003604,14]
[319616627,1710889903798,-1000.0,0.0003606,14]
[319616628,1710889903808,-1000.0,0.0003606,14]
[319616629,1710889903818,-1000.0,0.0003608,14]
[319616630,1710889903829,-1000.0,0.0003608,14]
[319616631,1710889903842,-150.199999,0.000361,27]
[319616632,1710889903852,-150.0,0.000361,10]
[319616633,1710889903861,-1000.0,0.000361,14]
[319616634,1710889903870,-1000.0,0.000361,14]
[319616635,1710889903883,-48196.1784212,0.0003616,2]
[319616636,1710889903893,-1523.6107557,0.0003616,2]
[319616637,1710889903904,-4817.9077446,0.0003616,2]
[319616638,1710889903914,-2605.6378547,0.0003616,2]
[319616639,1710889903923,-808.57,0.00036164,5]
[319616640,1710889903933,-739.62,0.00036164,5]
[319616641,1710889903943,-770.01,0.00036164,5]
[319616642,1710889903953,-706.97,0.00036164,5]
[319616643,1710889903963,-1912.51,0.00036164,5]
[319616644,1710889903974,-1956.9,0.00036164,5]
[319616645,1710889903989,-625.35,0.00036164,5]
[319616646,1710889903999,-2737.91,0.00036164,5]
[319616647,1710889904009,-727.13,0.00036164,5]
[319616648,1710889904019,-969.84,0.00036164,5]
[319616649,1710889904029,-1547.97,0.00036164,5]
[319616650,1710889904039,-771.88,0.00036164,5]
[319616651,1710889904049,-1734.35,0.00036164,5]
[319616652,1710889904058,-1362.64,0.00036164,5]
[319616653,1710889904068,-799.5,0.00036164,5]
[319616654,1710889904078,-506.51,0.00036164,5]
[319616655,1710889904087,-962.3,0.00036164,5]
[319616656,1710889904097,-738.08,0.00036164,5]
[319616657,1710889904107,-3065.96,0.00036164,5]
[319616658,1710889904117,-527.83,0.00036164,5]
[319616659,1710889904126,-1402.94,0.00036164,5]
[319616660,1710889904135,-863.28,0.00036164,5]
[319616661,1710889904145,-509.57,0.00036164,5]
[319616662,1710889904154,-816.49,0.00036164,5]
[319616663,1710889904163,-546.0,0.00036164,5]
[319616664,1710889904173,-1467.71,0.00036164,5]
[319616665,1710889904182,-10090.18,0.00036164,5]
[319616666,1710889904191,-2448.69,0.00036164,5]
[319616667,1710889904201,-1832.0,0.00036164,5]
[319616668,1710889904210,-1702.82,0.00036164,5]
[319616669,1710889904219,-576.68,0.00036164,5]
[319616670,1710889904232,-550.72,0.00036164,5]
[319616671,1710889904242,-1410.4,0.00036164,5]
[319616672,1710889904252,-1698.2,0.00036164,5]
[319616673,1710889904262,-566.59,0.00036164,5]
[319616674,1710889904272,-618.74,0.00036164,5]
[319616675,1710889904281,-4353.24,0.00036164,5]
[319616676,1710889904291,-7073.81,0.00036164,5]
[319616677,1710889904301,-522.69,0.00036164,5]
[319616678,1710889904311,-811.39,0.00036164,5]
[319616679,1710889904321,-928.93,0.00036164,5]
[319616680,1710889904331,-1038.54,0.00036164,5]
[319616681,1710889904343,-4631.2,0.00036164,5]
[319616682,1710889904353,-1456.54,0.00036164,5]
[319616683,1710889904363,-871.05,0.00036164,5]
[319616684,1710889904373,-1056.59,0.00036164,5]
[319616685,1710889904383,-537.22,0.00036164,5]
[319616686,1710889904392,-524.13,0.00036164,5]
[319616687,1710889904402,-2348.88,0.00036164,5]
[319616688,1710889904411,-515.48,0.00036164,5]
[319616689,1710889904421,-853.27,0.00036164,5]
[319616690,1710889904431,-1115.49,0.00036164,5]
[319616691,1710889904441,-971.85,0.00036164,5]
[319616692,1710889904451,-543.38,0.00036164,5]
[319616693,1710889904460,-2831.03,0.00036164,5]
[319616694,1710889904470,-1184.24,0.00036164,5]
[319616695,1710889904483,-979.33,0.00036164,5]
[319616696,1710889904493,-1727.5,0.00036164,5]
[319616697,1710889904503,-270.21725604,0.00036164,5]
[319616698,1710889904513,-766.46,0.00036164,5]
[319616699,1710889904523,-690.56,0.00036164,5]
[319616700,1710889904532,-522.77,0.00036164,5]
[319616701,1710889904542,-817.88,0.00036164,5]
[319616702,1710889904552,-556.39,0.00036164,5]
[319616703,1710889904562,-4803.55,0.00036164,5]
[319616704,1710889904572,-4845.95,0.00036164,5]
[319616705,1710889904581,-34103.85,0.00036164,5]
[319616706,1710889904592,-1942.23,0.00036164,5]
[319616707,1710889904601,-1080.43,0.00036164,5]
[319616708,1710889904612,-3482.12,0.00036164,5]
[319616709,1710889904621,-1812.24,0.00036164,5]
[319616710,1710889904632,-500.0,0.00036164,5]
[319616711,1710889904641,-670.6,0.00036164,5]
[319616712,1710889904651,-600.36,0.00036164,5]
[319616713,1710889904660,-862.6,0.00036164,5]
[319616714,1710889904670,-4330.62,0.00036164,5]
[319616715,1710889904680,-876.81,0.00036164,5]
[319616716,1710889904690,-3516.45,0.00036164,5]
[319616717,1710889904700,-628.68,0.00036164,5]
[319616718,1710889904710,-728.13,0.00036164,5]
[319616719,1710889904720,-898.81,0.00036164,5]
[319616720,1710889904734,-12216.87,0.00036164,5]
[319616721,1710889904744,-518.77,0.00036164,5]
[319616722,1710889904753,-366.41705799,0.00036164,5]
[319616723,1710889904763,-2145.43,0.00036164,5]
[319616724,1710889904773,-535.35,0.00036164,5]
[319616725,1710889904783,-2312.93,0.00036164,5]
[319616726,1710889904792,-555.13,0.00036164,5]
[319616727,1710889904802,-901.75,0.00036164,5]
[319616728,1710889904812,-2237.89,0.00036164,5]
[319616729,1710889904821,-1754.94,0.00036164,5]
[319616730,1710889904831,-2222.53,0.00036164,5]
[319616731,1710889904842,-693.88,0.00036164,5]
[319616732,1710889904852,-500.0,0.0003617,2]
[319616733,1710889904861,-500.0,0.0003617,2]
[319616734,1710889904871,-2280.63753663,0.00036209,9]
[319616735,1710889904891,-171.71,0.00036266,2]
[319616736,1710889904903,-166.99392,0.00036388,4]
[319616737,1710889904914,-500.0,0.00036438,5]
[319616738,1710889904925,-1041.13016382,0.00036438,5]
[319616739,1710889904936,-808.62500618,0.00036438,5]
[319616740,1710889904946,-739.79277524,0.00036438,5]
[319616741,1710889904956,-770.2320478,0.00036438,5]
[319616742,1710889904966,-707.07006651,0.00036438,5]
[319616743,1710889904979,-1912.61358205,0.00036438,5]
[319616744,1710889904990,-1956.99504564,0.00036438,5]
[319616745,1710889905001,-625.55,0.00036438,5]
[319616746,1710889905010,-2738.05165731,0.00036438,5]
[319616747,1710889905020,-727.18906021,0.00036438,5]
[319616748,1710889905030,-969.98727114,0.00036438,5]
[319616749,1710889905040,-1547.99569645,0.00036438,5]
[319616750,1710889905051,-771.89340898,0.00036438,5]
[319616751,1710889905061,-1734.54608111,0.00036438,5]
[319616752,1710889905070,-1362.71327139,0.00036438,5]
[319616753,1710889905079,-799.62895533,0.00036438,5]
[319616754,1710889905090,-506.74441889,0.00036438,5]
[319616755,1710889905099,-962.46069013,0.00036438,5]
[319616756,1710889905108,-738.16837237,0.00036438,5]
[319616757,1710889905117,-3065.98444031,0.00036438,5]
[319616758,1710889905126,-528.05068827,0.00036438,5]
[319616759,1710889905136,-1402.94,0.00036438,5]
[319616760,1710889905145,-863.32862632,0.00036438,5]
[319616761,1710889905155,-509.74767691,0.00036438,5]
[319616762,1710889905164,-816.69755869,0.00036438,5]
[319616763,1710889905174,-546.09029636,0.00036438,5]
[319616764,1710889905184,-1467.80360522,0.00036438,5]
[319616765,1710889905194,-10090.23084676,0.00036438,5]
[319616766,1710889905204,-2448.87555103,0.00036438,5]
[319616767,1710889905214,-1832.17132444,0.00036438,5]
[319616768,1710889905223,-1703.01371383,0.00036438,5]
[319616769,1710889905236,-576.84,0.00036438,5]
[319616770,1710889905245,-550.81690605,0.00036438,5]
[319616771,1710889905255,-1410.41158086,0.00036438,5]
[319616772,1710889905264,-618.75679812,0.00036438,5]
[319616773,1710889905274,-1698.24497464,0.00036438,5]
[319616774,1710889905284,-566.65225442,0.00036438,5]
[319616775,1710889905293,-4353.46418978,0.00036438,5]
[319616776,1710889905303,-7073.97708762,0.00036438,5]
[319616777,1710889905313,-522.88533387,0.00036438,5]
[319616778,1710889905322,-811.61932362,0.00036438,5]
[319616779,1710889905331,-928.97799264,0.00036438,5]
[319616780,1710889905340,-1038.64560072,0.00036438,5]
[319616781,1710889905350,-4631.26,0.00036438,5]
[319616782,1710889905359,-1456.58682999,0.00036438,5]
[319616783,1710889905369,-871.13,0.00036438,5]
[319616784,1710889905379,-1056.66737771,0.00036438,5]
[319616785,1710889905389,-537.36512731,0.00036438,5]
[319616786,1710889905400,-524.16388581,0.00036438,5]
[319616787,1710889905410,-2349.11834965,0.00036438,5]
[319616788,1710889905420,-515.68663348,0.00036438,5]
[319616789,1710889905431,-853.27481046,0.00036438,5]
[319616790,1710889905441,-1115.56847549,0.00036438,5]
[319616791,1710889905451,-971.90718038,0.00036438,5]
[319616792,1710889905461,-543.56424918,0.00036438,5]
[319616793,1710889905471,-2831.14970025,0.00036438,5]
[319616794,1710889905482,-1184.28028625,0.00036438,5]
[319616795,1710889905492,-979.4796045,0.00036438,5]
[319616796,1710889905502,-1727.72160268,0.00036438,5]
[319616797,1710889905512,-766.66816614,0.00036438,5]
[319616798,1710889905522,-690.77644123,0.00036438,5]
[319616799,1710889905532,-522.8075113,0.00036438,5]
[319616800,1710889905542,-818.10473153,0.00036438,5]
[319616801,1710889905552,-556.41403344,0.00036438,5]
[319616802,1710889905561,-4846.15692089,0.00036438,5]
[319616803,1710889905571,-4803.74760647,0.00036438,5]
[319616804,1710889905581,-34104.05180991,0.00036438,5]
[319616805,1710889905591,-1942.41365912,0.00036438,5]
[319616806,1710889905600,-1080.61663522,0.00036438,5]
[319616807,1710889905610,-3482.27733891,0.00036438,5]
[319616808,1710889905620,-1812.36970729,0.00036438,5]
[319616809,1710889905724,-353.75189788,0.00036438,5]
[319616810,1710889905737,-670.66532421,0.00036438,5]
[319616811,1710889905746,-600.4752242,0.00036438,5]
[319616812,1710889905755,-862.68605475,0.00036438,5]
[319616813,1710889905765,-4330.81216148,0.00036438,5]
[319616814,1710889905774,-877.03776635,0.00036438,5]
[319616815,1710889905783,-3516.63094236,0.00036438,5]
[319616816,1710889905793,-628.68,0.00036438,5]
[319616817,1710889905802,-728.33365334,0.00036438,5]
[319616818,1710889905811,-898.97246788,0.00036438,5]
[319616819,1710889905820,-12217.05732164,0.00036438,5]
[319616820,1710889905829,-518.8232325,0.00036438,5]
[319616821,1710889905840,-2145.48299818,0.00036438,5]
[319616822,1710889905849,-535.3654445,0.00036438,5]
[319616823,1710889905858,-2312.93586365,0.00036438,5]
[319616824,1710889905868,-555.23872695,0.00036438,5]
[319616825,1710889905879,-901.87264781,0.00036438,5]
[319616826,1710889905890,-2238.0295834,0.00036438,5]
[319616827,1710889905899,-1755.10118622,0.00036438,5]
[319616828,1710889905908,-2222.65040528,0.00036438,5]
[319616829,1710889905918,-61000.0,0.000365,35]
[319616830,1710889905928,-365.67,0.0003653,2]
[319616831,1710889905938,-985.49533259,0.000366,2]
[319616832,1710889905947,-985.49533259,0.000366,2]
[319616833,1710889905957,-6775.85589472,0.000366,2]
[319616834,1710889905968,-6775.85589471,0.000366,2]
[319616835,1710889905979,-6775.85589471,0.000366,2]
[319616836,1710889905989,-6775.85589471,0.000366,2]
[319616837,1710889905998,-6775.85589471,0.000366,2]
[319616838,1710889906007,-6775.85589471,0.000366,2]
[319616839,1710889906016,-6775.85589471,0.000366,2]
[319616840,1710889906025,-6775.85589471,0.000366,2]
[319616841,1710889906035,-6775.85589471,0.000366,2]
[319616842,1710889906046,-207.0,0.0003666,2]
[319616843,1710889906055,-500.0,0.00036712,5]
[319616844,1710889906065,-903.44,0.00036712,61]
[319616845,1710889906074,-3000.0,0.00036712,60]
[319616846,1710889906083,-1434.05,0.00036876,61]
[319616847,1710889906093,-269.0,0.0003696,2]
[319616848,1710889906102,-500.0,0.00036986,5]
[319616849,1710889906112,-1000.0,0.00037,30]
[319616850,1710889906121,-686.39,0.00037067,30]
[319616851,1710889906131,-151.3656308,0.00037086,2]
[319616852,1710889906141,-171.71,0.00037172,2]
[319616853,1710889906151,-500.0,0.0003726,5]
[319616854,1710889906161,-179.032007,0.00037498,14]
[319616855,1710889906171,-8665.00094281,0.000375,30]
[319616856,1710889906181,-985.49533259,0.000375,2]
[319616857,1710889906191,-6775.85589471,0.000375,2]
[319616858,1710889906200,-500.0,0.00037534,5]
[319616859,1710889906209,-903.44,0.00037534,63]
[319616860,1710889906219,-1117.23962256,0.0003757,2]
[319616861,1710889906229,-500.0,0.0003757,2]
[319616862,1710889906238,-500.0,0.0003757,2]
[319616863,1710889906247,-500.0,0.0003757,2]
[319616864,1710889906258,-700.0,0.0003757,2]
[319616865,1710889906267,-47351.8927177,0.00037574,2]
[319616866,1710889906277,-1500.5088647,0.00037574,2]
[319616867,1710889906287,-4744.8557664,0.00037574,2]
[319616868,1710889906296,-2592.0593235,0.00037574,2]
[319616869,1710889906305,-176313.8531124,0.0003759,14]
[319616870,1710889906315,-12832.25026948,0.00037597,2]
[319616871,1710889906324,-2752918.38791467,0.000376,7]